bitfinex/quotes_ETHUSD_20250525
["timestamp","ask_amount","ask_price","bid_price","bid_amount"]
[1748188348092,0.02,2500.9,2500.8,11.5372958]
[1748188349454,0.02,2500.9,2500.8,12.01580349]
[1748188350807,0.02,2500.9,2500.8,20.84380349]
[1748188353701,0.02,2501.9,2500.9,2.22058215]
[1748188354001,0.02,2501.9,2501.1,0.55]
[1748188354164,0.02,2501.9,2501.3,0.55]
[1748188354368,0.02,2501.9,2501.5,0.55]
[1748188354695,0.02,2501.9,2501.7,0.55]
[1748188354902,0.02,2501.9,2501.8,1.74207446]
[1748188355192,0.02,2501.9,2501.8,2.85398191]
[1748188355397,0.02,2501.9,2501.8,6.57907446]
[1748188355595,0.02,2501.9,2501.8,6.02891871]
[1748188356070,0.02,2501.9,2501.5,0.55015575]
[1748188356271,0.02,2501.9,2501.6,4.837]
[1748188357001,0.7545,2501.8,2501.6,5.47891871]
[1748188357501,0.7545,2501.8,2501.7,4.836]
[1748188358165,0.7545,2501.8,2501.7,5.47791871]
[1748188358360,0.7545,2501.8,2501.7,0.64191871]
[1748188358673,0.7545,2501.8,2501.7,4.836]
[1748188359295,0.7545,2501.8,2501.7,5.96151871]
[1748188359465,0.02,2501.9,2501.7,5.96151871]
[1748188359663,0.02,2501.9,2501.8,0.64191871]
[1748188361917,0.02,2501.9,2501.8,8.64191871]
[1748188362116,0.02,2501.9,2501.8,9.74207446]
[1748188362275,0.02,2501.9,2501.8,11.24824191]
[1748188365965,0.02,2501.9,2501.8,14.98408616]
[1748188366501,0.02,2501.9,2501.8,6.34216745]
[1748188366705,0.02,2501.9,2501.8,4.836]
[1748188366900,0.02,2501.9,2501.6,0.64191871]
[1748188367197,0.02,2501.9,2501.8,8.0]
[1748188367418,0.02,2501.9,2501.6,0.64191871]
[1748188367419,0.7652,2501.8,2501.6,0.64191871]
[1748188367562,0.7652,2501.8,2501.7,4.836]
[1748188368220,0.7652,2501.8,2501.7,13.4244771]
[1748188368418,0.7652,2501.8,2501.7,14.76692481]
[1748188368620,0.02,2501.9,2501.8,8.0]
[1748188368780,0.02,2501.9,2501.7,7.31708056]
[1748188368970,0.02,2501.9,2501.7,5.97463285]
[1748188369170,0.7652,2501.8,2501.7,1.13863285]
[1748188369387,0.7652,2501.8,2501.7,4.836]
[1748188371313,0.02,2501.9,2501.7,4.836]
[1748188372876,0.02,2501.9,2501.7,5.3869771]
[1748188373075,0.02,2501.9,2501.8,0.59371329]
[1748188375019,0.02,2501.9,2501.8,1.14371329]
[1748188375387,0.02,2501.9,2501.8,1.69469039]
[1748188375587,0.02,2501.9,2501.8,13.41171329]
[1748188377921,0.8328,2501.9,2501.3,1.10113285]
[1748188378095,0.8328,2501.9,2501.4,4.818]
[1748188378426,0.8328,2501.9,2501.5,8.0]
[1748188378607,0.8328,2501.9,2501.4,4.818]
[1748188378825,0.8328,2501.9,2501.5,8.0]
[1748188379011,0.8328,2501.9,2501.5,9.2818]
[1748188379406,0.02,2501.9,2501.5,9.7580271]
[1748188379803,0.02,2501.9,2501.6,0.55]
[1748188383043,0.02,2501.9,2501.5,9.2818]
[1748188385220,0.02,2501.9,2501.5,1.2818]
[1748188385412,0.02,2501.9,2501.7,8.0]
[1748188386227,0.02,2501.9,2501.8,0.0100195]
[1748188386614,0.02,2501.9,2501.8,0.5600195]
[1748188386820,0.02,2501.9,2501.8,0.55]
[1748188387018,0.02,2501.9,2501.7,8.0]
[1748188387206,0.02,2501.9,2501.8,1.2818]
[1748188387432,0.02,2501.9,2501.8,4.818]
[1748188387629,0.02,2501.9,2501.8,12.818]
[1748188390012,0.02,2501.9,2501.8,8.0]
[1748188390208,0.8138,2501.9,2501.2,0.4762271]
[1748188390415,0.8138,2501.9,2501.0,8.619]
[1748188390416,0.8138,2501.9,2501.3,4.817]
[1748188390658,0.7679,2501.7,2501.3,4.817]
[1748188391032,0.7679,2501.7,2501.2,1.98474688]
[1748188391236,0.7679,2501.7,2501.4,4.817]
[1748188392978,0.02,2501.9,2501.5,8.4762271]
[1748188393336,0.02,2501.9,2501.6,0.01003064]
[1748188393518,0.02,2501.9,2501.6,1.85522678]
[1748188394856,0.02,2501.9,2501.6,1.37899968]
[1748188396572,0.7679,2501.8,2501.6,1.37899968]
[1748188396727,0.7679,2501.8,2501.4,4.818]
[1748188397318,0.7679,2501.8,2501.5,8.0]
[1748188402622,0.7679,2501.8,2501.4,4.818]
[1748188402855,0.7679,2501.6,2501.4,4.818]
[1748188406477,0.7679,2501.6,2501.1,8.0]
[1748188406681,0.7679,2501.6,2501.3,8.0]
[1748188406991,3.989,2501.5,2501.2,4.801]
[1748188407198,0.7679,2501.4,2501.2,4.801]
[1748188408294,0.7679,2501.4,2501.3,8.0]
[1748188409585,0.7679,2501.6,2501.3,9.2801]
[1748188413875,0.7968,2501.8,2501.3,9.2801]
[1748188414797,0.02,2501.9,2501.3,9.2801]
[1748188418109,0.02,2501.9,2501.5,8.0]
[1748188418309,0.7988,2501.8,2501.5,8.0]
[1748188418511,0.7988,2501.8,2501.6,1.2801]
[1748188419013,0.7988,2501.8,2501.7,4.801]
[1748188420145,0.7988,2501.7,2501.4,4.801]
[1748188420805,0.7988,2501.7,2501.2,4.801]
[1748188421324,0.7988,2501.7,2501.3,8.0]
[1748188423643,0.7988,2501.7,2501.2,4.801]
[1748188423861,0.7558,2501.5,2501.2,4.801]
[1748188424210,0.47878,2501.6,2501.0,13.42]
[1748188424211,0.7505,2501.3,2501.0,13.42]
[1748188427990,0.7505,2501.3,2501.0,4.801]
[1748188427991,0.7706,2501.1,2501.0,4.801]
[1748188429189,0.7706,2501.0,2500.4,8.0]
[1748188429341,0.7706,2500.8,2500.4,8.0]
[1748188430374,3.99,2500.7,2500.4,8.0]
[1748188430885,0.7674,2500.6,2500.3,1.98474688]
[1748188431040,0.7674,2500.6,2500.1,4.802]
[1748188431241,0.7674,2500.5,2500.1,4.802]
[1748188433085,0.7674,2500.5,2500.0,1.98474688]
[1748188433681,0.7674,2500.3,2500.0,1.98474688]
[1748188434386,0.7674,2500.7,2500.1,0.4762271]
[1748188434561,0.7674,2500.7,2500.1,8.4762271]
[1748188434745,3.99,2500.6,2500.2,1.09477131]
[1748188434939,0.7674,2500.9,2500.2,1.09477131]
[1748188435181,0.7674,2500.9,2500.2,10.05773749]
[1748188435390,0.7674,2500.9,2500.2,2.05773749]
[1748188435779,0.7674,2500.9,2500.2,1.57099841]
[1748188436258,0.7674,2500.9,2500.2,1.09477131]
[1748188438842,1.24314,2500.9,2499.6,0.48673908]
[1748188439066,0.80029087,2500.8,2499.1,0.50673908]
[1748188439267,0.80029087,2500.8,2499.8,4.783]
[1748188439466,0.80029087,2500.8,2499.9,8.0]
[1748188440218,8.68874854,2500.8,2499.9,8.0]
[1748188440506,0.817,2500.6,2499.8,8.0]
[1748188440672,3.991,2500.5,2500.0,4.784]
[1748188441073,3.991,2500.5,2499.8,8.0]
[1748188441286,3.991,2500.5,2499.9,4.784]
[1748188441517,3.97613,2500.5,2499.9,4.784]
[1748188442789,0.817,2500.4,2499.8,4.784]
[1748188442993,4.54708789,2500.5,2499.8,4.784]
[1748188442994,0.817,2500.2,2499.8,4.784]
[1748188443179,0.817,2500.2,2499.9,8.0]
[1748188445281,0.817,2500.2,2499.8,4.784]
[1748188445481,0.05000046,2500.1,2499.8,4.784]
[1748188445885,0.817,2500.2,2499.8,4.784]
[1748188446289,0.8232,2500.5,2499.9,8.01011648]
[1748188446489,0.8232,2500.5,2499.9,8.0]
[1748188452305,0.8118,2501.2,2499.9,8.55]
[1748188452499,0.8118,2501.0,2499.9,8.55]
[1748188453097,0.8118,2501.0,2499.9,13.50496618]
[1748188453303,0.7812898,2501.3,2499.9,13.50496618]
[1748188453304,1.19295731,2501.3,2500.1,0.55]
[1748188453503,0.8118,2501.3,2500.3,0.55]
[1748188454547,0.8118,2501.6,2500.4,0.55]
[1748188454844,0.8118,2501.6,2500.4,1.51296618]
[1748188455007,0.8118,2501.6,2500.6,8.55]
[1748188455347,0.8118,2501.6,2500.8,8.0]
[1748188456038,0.8118,2501.6,2500.9,5.82073908]
[1748188456338,0.8118,2501.6,2501.1,0.55]
[1748188456524,0.8118,2501.6,2500.9,0.55]
[1748188456725,0.8118,2501.6,2501.0,4.784]
[1748188456930,0.8118,2501.6,2501.1,0.4784]
[1748188457226,0.8118,2501.6,2501.3,8.0]
[1748188457634,0.8118,2501.6,2501.1,0.4784]
[1748188457928,0.8118,2501.6,2501.5,8.0]
[1748188458130,0.8118,2501.6,2500.7,0.55]
[1748188458335,0.8118,2501.6,2500.9,8.0]
[1748188458731,0.8118,2501.6,2501.0,4.783]
[1748188458940,0.8118,2501.6,2500.5,4.95396618]
[1748188458941,0.8118,2501.6,2501.1,4.783]
[1748188459108,0.8118,2501.6,2500.5,0.48673908]
[1748188459308,0.8118,2501.6,2500.7,8.0]
[1748188459508,0.8118,2501.6,2500.8,1.2783]
[1748188459802,0.8118,2501.6,2501.0,8.0]
[1748188460508,0.88297348,2501.5,2500.9,4.783]
[1748188460706,0.88297348,2501.5,2501.0,8.0]
[1748188460707,0.833,2501.5,2501.0,8.0]
[1748188463150,0.02,2501.9,2501.1,0.56005059]
[1748188463338,0.02,2501.9,2501.2,0.95230168]
[1748188464027,0.02,2501.9,2501.2,9.15204109]
[1748188464760,0.02,2501.9,2501.4,8.0]
[1748188465724,0.02,2501.9,2501.5,0.01003614]
[1748188466065,0.02,2501.9,2501.5,0.56003614]
[1748188466265,0.02,2501.9,2501.6,0.85600361]
[1748188467529,0.02,2501.9,2501.8,8.0]
[1748188468152,0.02,2501.9,2501.8,4.763]
[1748188468364,0.02,2501.9,2501.6,0.85600361]
[1748188468569,0.02,2501.9,2501.8,4.763]
[1748188468775,0.02,2501.9,2501.8,9.302]
[1748188468943,0.3942991,2502.7,2501.9,8.55]
[1748188469142,0.05,2502.9,2502.0,0.66699002]
[1748188469343,0.05,2502.9,2502.1,1.49155901]
[1748188469641,0.05,2502.9,2502.2,0.88284492]
[1748188469843,0.05,2502.9,2502.4,0.55]
[1748188470173,0.05,2502.9,2502.5,1.60854903]
[1748188470353,0.05,2502.9,2502.7,8.0]
[1748188470556,0.05,2502.9,2502.8,0.94155901]
[1748188470761,0.05,2502.9,2502.8,2.36753141]
[1748188470959,0.05,2502.9,2502.8,11.04450467]
[1748188471137,0.05,2502.9,2502.8,11.03452143]
[1748188472829,0.05,2502.9,2502.8,11.58452143]
[1748188474447,0.05,2502.9,2502.8,12.04604983]
[1748188475296,0.05,2503.9,2502.9,8.55]
[1748188475561,0.05,2503.9,2503.1,8.55]
[1748188475766,0.05,2503.9,2503.3,8.55]
[1748188475954,0.05,2503.9,2503.5,8.55]
[1748188476135,0.05,2503.9,2503.7,0.55]
[1748188476335,0.68748676,2504.7,2503.9,0.6]
[1748188476606,0.05,2504.9,2504.1,8.55]
[1748188476750,0.05,2504.9,2504.2,0.67382119]
[1748188476949,0.05,2504.9,2504.3,0.55]
[1748188477199,3.79089091,2505.3,2504.5,0.55]
[1748188477352,2.4061697,2505.1,2504.7,8.0]
[1748188477547,1.99816924,2505.7,2504.9,8.55]
[1748188477746,1.99816924,2505.7,2505.1,0.55]
[1748188477953,1.99816924,2505.7,2505.3,0.55]
[1748188478173,1.99816924,2505.7,2505.5,0.55]
[1748188478453,1.99816924,2505.7,2505.6,14.11747788]
[1748188479063,1.99816924,2505.7,2505.6,9.35747788]
[1748188479269,1.99816924,2505.7,2505.6,17.297]
[1748188479479,1.99816924,2505.7,2505.6,13.308]
[1748188480469,1.99816924,2505.7,2505.6,14.66547788]
[1748188480966,6.4472425,2506.4,2505.7,8.55]
[1748188481170,7.28271863,2508.5,2505.7,8.55]
[1748188481171,6.49561863,2508.5,2506.1,0.55]
[1748188481399,6.49561863,2508.5,2507.6,0.55]
[1748188481707,0.47634387,2508.8,2507.9,0.2]
[1748188481853,2.85773589,2509.7,2508.6,0.55]
[1748188482061,2.85773589,2509.7,2508.8,8.55]
[1748188482259,3.41189963,2509.8,2509.0,0.55]
[1748188482453,3.41189963,2509.8,2509.2,0.55]
[1748188482657,3.41189963,2509.8,2509.4,0.55]
[1748188483157,3.41189963,2509.8,2509.4,4.532]
[1748188483607,3.01282308,2509.5,2509.4,5.02357531]
[1748188483808,3.01282308,2509.5,2509.4,6.21287183]
[1748188483967,3.01282308,2509.5,2509.4,8.26287183]
[1748188484394,3.01282308,2509.5,2509.4,6.21287183]
[1748188484590,3.01282308,2509.5,2509.4,8.59553406]
[1748188484797,0.7871,2511.7,2509.5,0.55]
[1748188484798,10.30187571,2511.7,2509.5,0.55]
[1748188485116,10.30187571,2511.7,2509.6,0.33263572]
[1748188485117,9.05691261,2511.6,2509.6,0.33263572]
[1748188485409,0.7871,2510.6,2509.4,0.39296629]
[1748188485763,0.7871,2510.6,2509.3,8.55]
[1748188486012,0.8233,2511.2,2509.5,0.55]
[1748188486171,0.8233,2511.2,2509.7,0.55]
[1748188486381,0.8233,2511.2,2509.8,1.28790554]
[1748188486595,0.8233,2511.2,2509.8,0.63929652]
[1748188486798,3.98,2511.0,2509.4,0.40548008]
[1748188486973,3.98,2511.0,2509.2,8.55]
[1748188487178,0.8233,2511.2,2509.2,9.60595767]
[1748188487492,4.8033,2511.2,2509.3,5.61360902]
[1748188487673,4.8033,2511.2,2509.4,8.0]
[1748188487873,0.8233,2510.3,2509.5,4.965]
[1748188488280,0.8233,2510.3,2509.2,8.39096883]
[1748188488499,0.8233,2510.3,2509.6,8.0]
[1748188488802,0.87309921,2510.3,2507.3,1.96833401]
[1748188489093,0.87309921,2510.3,2507.2,0.2]
[1748188489094,0.8233,2510.3,2509.1,4.963]
[1748188489275,3.979,2510.1,2509.2,4.963]
[1748188489474,3.979,2510.2,2509.2,4.963]
[1748188490317,1.3733,2510.3,2509.2,4.963]
[1748188490502,3.979,2510.1,2509.2,4.963]
[1748188490721,0.8233,2510.3,2509.2,4.963]
[1748188491017,4.8023,2510.3,2509.3,8.00972256]
[1748188491313,0.8233,2510.3,2509.4,4.963]
[1748188491513,0.55,2510.2,2508.6,0.64860902]
[1748188491745,0.7553,2509.8,2506.4,1.98979593]
[1748188491896,9.00714067,2509.7,2507.8,5.54802181]
[1748188492099,0.97624407,2509.6,2508.0,8.0]
[1748188492330,1.3053,2509.5,2508.0,0.64860902]
[1748188492530,1.3053,2509.5,2508.1,4.962]
[1748188492832,1.3053,2509.5,2508.2,8.0]
[1748188493407,0.55,2509.3,2507.8,1.04424898]
[1748188493604,0.55,2509.3,2508.3,4.962]
[1748188493810,0.55,2509.3,2508.4,8.0]
[1748188494010,0.55,2509.3,2508.3,4.962]
[1748188494436,0.55,2509.3,2508.4,8.0]
[1748188494620,0.55,2509.3,2508.3,4.962]
[1748188495021,0.55,2509.3,2508.4,8.0]
[1748188495235,0.7553,2509.4,2508.4,8.0]
[1748188495544,0.7553,2509.4,2508.5,0.64860902]
[1748188495918,0.7553,2509.4,2507.8,0.39563996]
[1748188496117,0.7553,2509.4,2508.1,0.64860902]
[1748188496320,0.47333,2509.3,2508.1,0.64860902]
[1748188497355,0.47333,2509.3,2508.1,1.23463083]
[1748188497509,0.7553,2509.4,2508.2,0.58602181]
[1748188497711,3.928,2509.6,2508.3,0.64860902]
[1748188498229,3.978,2509.6,2508.3,1.23463083]
[1748188498428,0.05,2509.9,2508.4,0.55]
[1748188498741,0.05,2509.9,2508.6,0.55]
[1748188498946,0.05,2509.9,2508.8,8.0]
[1748188499152,0.05,2509.9,2508.8,8.64860902]
[1748188499523,0.05,2509.9,2508.9,0.64860902]
[1748188500842,0.8053,2509.9,2508.9,0.64860902]
[1748188501029,0.8053,2509.9,2509.0,0.00973003]
[1748188501362,0.8053,2509.9,2508.9,0.64860902]
[1748188501654,0.8053,2509.9,2509.1,8.0]
[1748188502149,0.7553,2509.7,2508.9,4.961]
[1748188502350,0.7553,2509.7,2508.1,0.6685]
[1748188502351,0.04981609,2509.6,2508.8,4.961]
[1748188502554,1.03104177,2509.6,2508.9,4.961]
[1748188502754,0.98122568,2509.6,2508.9,4.961]
[1748188502927,0.04981731,2509.6,2508.9,4.961]
[1748188503130,0.7553,2509.7,2508.1,1.23463083]
[1748188503131,0.55,2509.3,2508.1,1.23463083]
[1748188503326,0.7553,2508.4,2507.3,4.961]
[1748188503561,0.04984047,2508.3,2507.3,4.961]
[1748188503730,0.7553,2508.4,2507.3,4.961]
[1748188503934,0.97624407,2508.3,2507.3,4.961]
[1748188504128,0.7553,2508.2,2507.3,4.961]
[1748188504529,0.7553,2508.2,2508.1,0.05]
[1748188505266,0.7553,2508.2,2507.3,4.961]
[1748188505464,0.7553,2508.2,2507.4,8.0]
[1748188505649,0.7553,2508.2,2507.3,4.961]
[1748188505835,0.7553,2507.9,2506.5,0.6685]
[1748188506028,0.80514997,2507.9,2507.1,5.011]
[1748188506368,0.7553,2507.9,2507.2,0.00981815]
[1748188506565,0.7553,2507.9,2507.3,8.0]
[1748188507124,0.7553,2507.9,2507.1,0.05]
[1748188507472,0.7553,2507.9,2507.3,8.0]
[1748188508020,0.7553,2507.9,2507.2,4.962]
[1748188508220,9.00714067,2507.6,2507.2,4.962]
[1748188508623,0.7553,2507.5,2507.1,0.05]
[1748188509541,0.7553,2508.1,2507.2,0.00982073]
[1748188509864,0.7553,2508.1,2507.1,0.05]
[1748188509865,9.76244067,2508.1,2507.1,0.05]
[1748188510065,9.76244067,2508.1,2507.2,4.963]
[1748188510223,0.7553,2507.9,2507.2,4.963]
[1748188510774,0.7053,2507.9,2507.2,4.963]
[1748188510928,12.98614067,2508.1,2507.2,4.963]
[1748188511123,0.55,2508.0,2507.2,4.963]
[1748188511550,0.55,2508.0,2507.3,4.963]
[1748188511738,9.00714067,2507.7,2507.3,4.963]
[1748188512334,9.00714067,2507.7,2507.1,0.05]
[1748188512931,0.59986085,2507.6,2507.1,0.05]
[1748188513281,0.55,2507.6,2507.1,0.05]
[1748188513489,1.35361407,2507.9,2507.1,0.05]
[1748188513687,12.98614067,2507.8,2507.1,0.05]
[1748188513982,0.8878,2507.6,2507.1,0.05]
[1748188516255,0.9075,2508.0,2507.1,0.05]
[1748188516671,0.9075,2508.0,2507.2,4.964]
[1748188517041,3.98,2508.1,2507.3,4.964]
[1748188517042,0.9075,2507.8,2507.3,4.964]
[1748188517245,0.99146407,2507.7,2507.1,0.05]
[1748188517473,0.9075,2507.8,2507.1,5.02]
[1748188517769,3.98,2507.7,2507.1,5.02]
[1748188518062,3.98,2507.7,2507.2,4.97]
[1748188518466,3.98,2507.7,2507.1,0.05]
[1748188518834,3.98,2507.7,2507.2,4.97]
[1748188519274,5.36946407,2507.7,2507.2,4.97]
[1748188519661,4.03666403,2507.7,2507.1,0.05]
[1748188520902,9.00714067,2507.5,2507.1,0.05]
[1748188521194,0.9065,2507.4,2507.1,0.05]
[1748188522638,0.55,2507.3,2507.1,0.05]
[1748188522839,0.9065,2507.2,2507.1,0.05]
[1748188524479,10.46364067,2507.2,2507.1,0.05]
[1748188524680,10.96000474,2507.2,2507.1,0.05]
[1748188524983,0.9065,2507.2,2507.1,0.05]
[1748188525285,3.98,2507.7,2507.1,0.05]
[1748188525680,0.8587,2507.6,2507.1,0.05]
[1748188530429,0.9156,2509.0,2507.2,0.861]
[1748188530713,0.9156,2509.0,2507.4,0.861]
[1748188530866,0.9156,2509.0,2507.6,8.861]
[1748188531066,0.9156,2509.0,2507.8,8.0]
[1748188531305,0.9156,2509.0,2508.1,0.861]
[1748188531511,0.9156,2509.0,2508.2,1.37703956]
[1748188532309,0.9156,2509.0,2508.1,0.861]
[1748188533466,0.9156,2509.0,2508.1,1.2575059]
[1748188534313,0.9156,2509.7,2508.1,2.3628788]
[1748188534510,0.9156,2509.7,2508.2,1.1053729]
[1748188534714,3.98,2509.6,2508.2,1.1053729]
[1748188535013,9.49670067,2509.5,2508.1,1.2575059]
[1748188535416,0.55,2509.4,2508.1,0.861]
[1748188535708,4.53,2509.4,2508.1,0.861]
[1748188535877,4.53,2509.4,2508.2,0.00976944]
[1748188536301,0.8336,2509.3,2508.1,0.861]
[1748188536502,0.53636,2509.2,2508.1,0.861]
[1748188536909,0.53636,2509.2,2508.2,0.00977302]
[1748188537302,0.53636,2509.2,2508.1,0.861]
[1748188537502,0.53636,2509.2,2508.2,0.00977123]
[1748188537703,0.53636,2509.2,2508.1,0.861]
[1748188538106,0.53636,2509.2,2508.2,0.00977302]
[1748188538615,0.53636,2509.2,2508.1,0.861]
[1748188541121,9.00714067,2509.1,2508.2,4.969]
[1748188541318,0.8336,2509.3,2508.2,4.969]
[1748188541521,3.979,2509.0,2508.2,4.969]
[1748188544357,9.00714067,2509.2,2508.3,8.0]
[1748188544496,0.8336,2509.3,2508.4,0.822]
[1748188544692,0.8336,2509.3,2508.4,1.47460133]
[1748188545116,3.979,2509.5,2508.5,0.00975832]
[1748188545325,4.46287,2509.5,2508.4,1.47460133]
[1748188547237,4.46287,2509.5,2508.4,0.822]
[1748188547412,0.885,2509.9,2508.4,0.822]
[1748188547617,12.98614067,2509.8,2508.4,0.822]
[1748188552359,9.00714067,2509.8,2508.4,0.822]
[1748188552516,3.978,2509.7,2508.4,0.822]
[1748188553448,3.978,2509.6,2508.4,0.822]
[1748188553649,9.00714067,2509.8,2508.4,0.822]
[1748188553808,3.978,2509.7,2508.6,0.8717]
[1748188557550,3.978,2509.7,2508.7,4.92]
[1748188557961,3.978,2509.7,2508.8,4.92]
[1748188559953,9.00714067,2509.8,2508.8,4.92]
[1748188560150,5.00691245,2509.7,2508.8,4.92]
[1748188560848,9.00714067,2509.5,2508.7,4.92]
[1748188561027,0.8306,2509.3,2508.7,4.92]
[1748188562143,0.04982653,2509.2,2508.7,4.92]
[1748188562314,0.8306,2509.3,2508.7,4.92]
[1748188563159,3.978,2509.2,2508.7,4.92]
[1748188563453,0.48086,2509.2,2508.7,4.92]
[1748188563756,3.978,2509.1,2508.7,4.92]
[1748188565043,9.00714067,2509.5,2508.7,4.92]
[1748188565357,3.978,2509.4,2508.7,4.92]
[1748188565948,8.56135727,2509.6,2508.7,4.92]
[1748188566147,3.978,2509.5,2508.7,4.92]
[1748188566663,5.33482697,2509.5,2508.7,4.92]
[1748188567180,8.56135727,2509.3,2508.7,4.92]
[1748188567481,8.56135727,2509.0,2508.6,0.8717]
[1748188567782,8.56135727,2509.0,2508.6,5.7917]
[1748188568681,3.978,2508.9,2508.6,5.7917]
[1748188568881,3.978,2508.9,2508.3,0.8918]
[1748188569188,5.23193573,2508.9,2508.5,4.92]
[1748188570455,8.56135727,2508.7,2508.3,0.8918]
[1748188570660,8.56135727,2508.7,2508.4,4.92]
[1748188573096,0.04983384,2508.6,2507.8,0.8918]
[1748188573257,8.56135727,2507.9,2507.7,7.51358864]
[1748188574490,8.56135727,2507.9,2507.7,5.52884176]
[1748188574793,8.56135727,2507.9,2507.7,4.92]
[1748188575492,9.815293,2507.9,2507.5,1.98474688]
[1748188575655,8.56135727,2507.6,2507.5,1.98474688]
[1748188575855,12.54035727,2507.6,2507.5,1.98474688]
[1748188577883,13.38565727,2507.6,2507.1,0.05]
[1748188579761,2.09923573,2507.9,2507.2,0.8864]
[1748188579982,3.979,2507.6,2507.2,0.8864]
[1748188580613,8.56135727,2507.7,2507.2,0.8864]
[1748188580894,3.979,2507.5,2507.2,0.8864]
[1748188581458,8.56135727,2508.0,2507.2,0.8864]
[1748188581658,3.979,2507.7,2507.2,0.8864]
[1748188581873,8.56135727,2508.0,2507.2,0.8864]
[1748188582073,9.500513,2508.0,2507.2,0.8864]
[1748188582387,3.98,2507.9,2507.2,0.8864]
[1748188582594,3.98,2507.8,2507.2,0.8864]
[1748188583814,8.56135727,2507.7,2507.3,4.77]
[1748188584717,3.98,2507.6,2507.3,4.77]
[1748188586323,4.378,2507.6,2507.3,4.77]
[1748188587817,4.378,2507.6,2507.2,4.771]
[1748188587818,8.56135727,2507.4,2507.2,4.771]
[1748188588025,8.56135727,2507.4,2507.2,4.4728125]
[1748188588698,3.98,2507.3,2507.2,4.4728125]
[1748188589273,5.23413573,2507.3,2507.2,4.4728125]
[1748188591109,5.23413573,2507.3,2507.1,0.05]
[1748188591296,5.28400038,2507.3,2507.1,0.05]
[1748188591494,5.23413573,2507.3,2507.1,0.05]
[1748188594635,1.25413573,2507.3,2507.1,0.05]
[1748188594805,3.98,2507.2,2507.1,0.05]
[1748188598432,1.2169,2507.6,2507.1,0.05]
[1748188598618,3.981,2507.5,2507.1,0.05]
[1748188598814,1.2169,2507.6,2507.1,0.05]
[1748188598815,0.04986341,2507.4,2507.1,0.05]
[1748188599134,3.981,2507.3,2507.1,0.05]
[1748188599521,4.38408634,2507.3,2507.1,0.05]
[1748188599904,4.4339498,2507.3,2507.1,0.05]
[1748188600131,4.38408634,2507.3,2507.1,0.05]
[1748188601206,0.55,2507.2,2507.1,0.05]
[1748188601414,1.3816,2507.2,2507.1,0.05]
[1748188601734,2.81430436,2507.2,2507.1,0.05]
[1748188602295,5.41370436,2507.2,2507.1,0.05]
[1748188602495,3.981,2507.2,2507.1,0.05]
[1748188605559,0.40308634,2507.3,2507.1,0.05]
[1748188605720,3.981,2507.2,2507.1,0.05]
[1748188607820,4.531,2507.2,2507.1,0.05]
[1748188608020,5.97508078,2507.2,2507.1,0.05]
[1748188609382,6.87058078,2507.2,2507.1,0.05]
[1748188609923,9.4455,2507.1,2506.1,0.05]
[1748188610153,0.55,2506.6,2506.1,0.05]
[1748188610356,0.55,2506.4,2506.1,0.05]
[1748188610533,0.4531,2506.3,2506.1,0.05]
[1748188614285,3.982,2506.2,2506.1,0.05]
[1748188616386,9.11135727,2506.7,2506.1,0.05]
[1748188616695,3.982,2506.6,2506.1,0.05]
[1748188619177,3.982,2506.5,2506.1,0.05]
[1748188619393,0.3982,2506.4,2506.1,0.05]
[1748188619698,0.8955,2506.8,2506.1,0.05]
[1748188619857,8.56135727,2506.6,2506.1,0.05]
[1748188620709,0.59988256,2506.5,2506.1,0.05]
[1748188620854,1.4193,2506.2,2506.1,0.05]
[1748188621050,5.4013,2506.2,2506.1,0.05]
[1748188621393,6.79756573,2506.2,2506.1,0.05]
[1748188622990,2.81556573,2506.2,2506.1,0.05]
[1748188623295,0.8693,2506.5,2506.1,0.05]
[1748188623597,3.982,2506.4,2506.1,0.05]
[1748188625180,1.4193,2506.8,2506.1,0.05]
[1748188625491,3.982,2506.7,2506.1,0.05]
[1748188625698,0.54013,2506.6,2506.1,0.05]
[1748188625989,3.982,2506.5,2506.1,0.05]
[1748188627212,8.56135727,2506.3,2506.1,0.05]
[1748188627974,9.43065727,2506.3,2506.1,0.05]
[1748188628397,0.55,2506.2,2506.1,0.05]
[1748188628604,1.54806573,2506.2,2506.1,0.05]
[1748188629677,4.98106573,2506.2,2506.1,0.05]
[1748188630004,3.983,2506.2,2506.1,0.05]
[1748188631781,0.54013,2506.6,2506.1,0.05]
[1748188631975,3.983,2506.7,2506.3,0.8262]
[1748188632208,3.983,2506.9,2506.3,8.8262]
[1748188632515,0.33237282,2507.1,2506.4,0.8262]
[1748188632693,3.983,2507.0,2506.4,0.8262]
[1748188633232,3.983,2507.0,2506.4,0.8162]
[1748188634920,3.983,2507.0,2506.6,8.0]
[1748188636131,0.55,2507.4,2506.6,8.0]
[1748188636335,3.982,2507.0,2506.6,8.0]
[1748188639036,0.96613573,2507.3,2506.6,8.0]